bitfinex-derivatives/quotes_SOLF0:USTF0_20250527
["timestamp","ask_amount","ask_price","bid_price","bid_amount"]
[1748329135782,0.04401739,173.78,173.75,109.28]
[1748329136087,5.753,173.77,173.74,109.3177545]
[1748329136683,5.7533,173.76,173.74,0.0377545]
[1748329136880,0.04401739,173.78,173.74,109.3177545]
[1748329137481,5.7531,173.77,173.74,109.3177545]
[1748329138187,0.04401739,173.78,173.75,5.7534]
[1748329138577,0.04401739,173.78,173.75,109.28]
[1748329139480,5.79691739,173.78,173.75,109.28]
[1748329139686,5.79691739,173.78,173.75,115.0335]
[1748329140490,5.79691739,173.78,173.75,109.28]
[1748329140790,0.04401739,173.78,173.74,0.0377545]
[1748329141487,5.7532,173.76,173.74,0.0377545]
[1748329142292,5.7536,173.75,173.74,0.0377545]
[1748329143890,5.7548,173.72,173.69,146.78]
[1748329144894,5.7916758,173.72,173.69,146.81705356]
[1748329145194,0.0368758,173.72,173.69,146.81705356]
[1748329145694,0.0368758,173.72,173.69,152.57235356]
[1748329146892,0.0368758,173.72,173.69,146.81705356]
[1748329147393,0.0368758,173.72,173.69,152.57255356]
[1748329148289,0.0368758,173.72,173.7,5.7552]
[1748329150195,0.0368758,173.72,173.69,152.57255356]
[1748329150495,0.0368758,173.72,173.69,146.81705356]
[1748329151393,5.7552,173.71,173.69,146.81705356]
[1748329152992,5.7552,173.7,173.69,0.03705356]
[1748329161098,5.7571,173.65,173.62,141.52]
[1748329161497,4.038,173.7,173.62,141.52]
[1748329162197,5.7574,173.64,173.6,147.2784]
[1748329162398,0.04247285,173.64,173.6,147.2784]
[1748329162904,0.04247285,173.64,173.61,5.7582]
[1748329164106,5.79977285,173.64,173.61,5.7582]
[1748329166208,5.79977285,173.64,173.6,147.2784]
[1748329168306,5.79977285,173.64,173.61,5.7582]
[1748329169110,5.7576,173.63,173.6,141.52]
[1748329170303,0.04247285,173.64,173.6,141.52]
[1748329171911,5.7579,173.62,173.6,141.52]
[1748329172110,0.04247285,173.64,173.6,141.52]
[1748329172306,0.04247285,173.64,173.57,5.7594]
[1748329172608,0.04247285,173.64,173.58,5.7591]
[1748329173411,5.7578,173.63,173.59,5.7588]
[1748329175301,5.758,173.62,173.56,141.56]
[1748329176002,5.758,173.62,173.58,5.7589]
[1748329176398,5.758,173.62,173.56,141.56]
[1748329176803,5.7583,173.61,173.56,141.56]
[1748329177002,0.03788047,173.6,173.56,141.56]
[1748329177507,0.03788047,173.6,173.59,5.7589]
[1748329181710,0.03788047,173.6,173.58,5.7591]
[1748329183314,0.03788047,173.6,173.57,5.7595]
[1748329183715,5.79638047,173.6,173.57,5.7595]
[1748329184116,0.03788047,173.6,173.57,5.7595]
[1748329185822,5.759,173.59,173.56,141.56]
[1748329187216,5.79658047,173.6,173.56,141.56]
[1748329187717,5.79658047,173.6,173.56,147.3196]
[1748329188717,5.79658047,173.6,173.57,5.7595]
[1748329188920,0.03788047,173.6,173.56,141.56]
[1748329190821,0.03788047,173.6,173.57,5.7595]
[1748329192120,0.03788047,173.6,173.5,497.26]
[1748329192324,0.03788047,173.6,173.51,140.88]
[1748329192720,5.7599,173.56,173.51,146.6415]
[1748329192920,0.03683026,173.55,173.51,140.88]
[1748329193115,5.7606,173.54,173.51,140.88]
[1748329193316,0.03683026,173.55,173.51,140.88]
[1748329194719,0.03683026,173.55,173.51,146.6413]
[1748329195219,0.03683026,173.55,173.47,146.7368]
[1748329195826,0.03683026,173.55,173.51,5.7613]
[1748329196222,0.03683026,173.55,173.47,146.7368]
[1748329197026,0.03683026,173.55,173.53,5.7606]
[1748329197520,0.03683026,173.55,173.47,146.7368]
[1748329197721,0.03683026,173.55,173.54,5.7605]
[1748329199421,0.03683026,173.55,173.48,140.9]
[1748329199728,0.03683026,173.55,173.52,5.7611]
[1748329200228,0.03683026,173.55,173.52,5.761]
[1748329200528,0.03683026,173.55,173.48,140.9]
[1748329202224,140.9,173.64,173.52,5.18240321]
[1748329202530,5.7572,173.65,173.53,140.9]
[1748329202730,638.34,173.68,173.53,140.9]
[1748329203028,2.59994133,173.66,173.54,4.1098]
[1748329203229,0.04059067,173.62,173.6,5.7583]
[1748329204834,0.04059067,173.62,173.61,5.7582]
[1748329205833,0.04059067,173.62,173.6,5.7585]
[1748329207035,0.04059067,173.62,173.61,5.7582]
[1748329208129,140.9,173.72,173.66,5.7564]
[1748329208331,2.6032153,173.71,173.66,5.7564]
[1748329208536,2.6032153,173.7,173.63,140.9]
[1748329208833,5.7555,173.7,173.65,5.7568]
[1748329209029,140.9,173.72,173.65,5.7568]
[1748329209233,5.79782384,173.7,173.67,0.04266834]
[1748329210736,5.7559,173.68,173.67,0.04266834]
[1748329212738,5.7556,173.69,173.67,0.04266834]
[1748329213639,0.04252384,173.7,173.67,0.04266834]
[1748329214232,0.04252384,173.7,173.67,5.79886834]
[1748329214739,0.04252384,173.7,173.67,0.04266834]
[1748329214934,0.04252384,173.7,173.69,5.7556]
[1748329215740,0.04252384,173.7,173.67,0.04266834]
[1748329219839,0.04252384,173.7,173.68,5.7559]
[1748329220141,0.04252384,173.7,173.67,0.04266834]
[1748329221042,0.04252384,173.7,173.67,5.79856834]
[1748329221939,0.04252384,173.7,173.68,5.7559]
[1748329223340,0.04252384,173.7,173.69,5.7556]
[1748329225639,497.32,173.84,173.74,5.7537]
[1748329225844,5.7523,173.79,173.74,5.7537]
[1748329226242,142.4019,173.83,173.73,5.7541]
[1748329226639,0.03795628,173.8,173.76,0.04353184]
[1748329227042,5.7523,173.79,173.76,0.04353184]
[1748329227339,0.03795628,173.8,173.76,0.04353184]
[1748329227644,5.7528,173.78,173.76,0.04353184]
[1748329228342,0.03795628,173.8,173.76,0.04353184]
[1748329230842,5.79015628,173.8,173.76,0.04353184]
[1748329231345,0.03795628,173.8,173.77,5.7529]
[1748329231646,0.03795628,173.8,173.76,0.04353184]
[1748329231948,0.03795628,173.8,173.76,5.79673184]
[1748329232345,0.03795628,173.8,173.76,0.04353184]
[1748329232552,0.03795628,173.8,173.77,5.7528]
[1748329232745,0.03795628,173.8,173.76,0.04353184]
[1748329233251,0.03795628,173.8,173.77,5.7526]
[1748329234549,0.03795628,173.8,173.76,5.79673184]
[1748329234846,0.03795628,173.8,173.76,0.04353184]
[1748329235149,0.03795628,173.8,173.77,5.7527]
[1748329235350,0.03795628,173.8,173.76,0.04353184]
[1748329235747,0.03795628,173.8,173.78,5.7524]
[1748329235951,0.03795628,173.8,173.76,0.04353184]
[1748329237248,0.03795628,173.8,173.76,5.79653184]
[1748329237450,0.03795628,173.8,173.76,0.04353184]
[1748329238056,0.03795628,173.8,173.77,5.7526]
[1748329240950,0.03795628,173.8,173.76,0.04353184]
[1748329241456,0.03795628,173.8,173.76,109.32353184]
[1748329241652,0.03795628,173.8,173.76,115.07653184]
[1748329242155,0.03795628,173.8,173.77,5.7529]
[1748329242751,0.03795628,173.8,173.76,0.04353184]
[1748329243452,5.78995628,173.8,173.76,5.79653184]
[1748329243757,0.03795628,173.8,173.76,0.04353184]
[1748329244651,0.03795628,173.8,173.77,5.7528]
[1748329245158,0.03795628,173.8,173.78,5.7524]
[1748329245351,0.03795628,173.8,173.76,0.04353184]
[1748329245555,1.98015628,173.8,173.76,0.04353184]
[1748329245956,5.7529,173.77,173.76,0.04353184]
[1748329246155,1.98015628,173.8,173.76,0.04353184]
[1748329246557,7.73215628,173.8,173.76,0.04353184]
[1748329247551,5.7523,173.79,173.76,0.04353184]
[1748329248757,5.7526,173.78,173.76,0.04353184]
[1748329249968,5.7529,173.77,173.76,0.04353184]
[1748329253073,2.59651336,173.77,173.7,140.38]
[1748329253273,1.9422,173.8,173.7,140.38]
[1748329253574,5.7546,173.72,173.7,140.38]
[1748329253874,5.7546,173.72,173.68,109.28]
[1748329253875,139.94,173.77,173.66,139.94]
[1748329254073,139.94,173.77,173.7,0.04129783]
[1748329254074,0.04228917,173.73,173.7,0.04129783]
[1748329254270,145.12240321,173.72,173.62,139.94]
[1748329254472,1.9398,173.71,173.62,139.94]
[1748329255370,0.03741897,173.68,173.65,0.03975386]
[1748329255776,5.7566,173.66,173.65,0.03975386]
[1748329258679,5.7563,173.67,173.65,0.03975386]
[1748329259281,0.03741897,173.68,173.65,0.03975386]
[1748329259981,5.79351897,173.68,173.65,0.03975386]
[1748329260379,0.03741897,173.68,173.65,0.03975386]
[1748329260581,0.03741897,173.68,173.65,5.79655386]
[1748329262385,0.03741897,173.68,173.66,5.7565]
[1748329262577,0.03741897,173.68,173.65,0.03975386]
[1748329263085,0.03741897,173.68,173.66,5.7563]
[1748329263280,0.03741897,173.68,173.67,140.0]
[1748329263481,0.03741897,173.68,173.67,255.0962]
[1748329263687,1.9817,173.77,173.67,249.34]
[1748329264185,1.9817,173.77,173.67,140.0]
[1748329264587,5.7552,173.71,173.7,0.04358233]
[1748329264790,0.04029569,173.74,173.7,0.04358233]
[1748329265190,5.7543,173.73,173.7,0.04358233]
[1748329265690,5.79429569,173.74,173.7,0.04358233]
[1748329265986,0.04029569,173.74,173.7,0.04358233]
[1748329266388,0.04029569,173.74,173.71,5.7547]
[1748329266585,0.04029569,173.74,173.7,0.04358233]
[1748329266989,0.04029569,173.74,173.73,5.7542]
[1748329267289,0.04029569,173.74,173.73,140.0]
[1748329267687,0.04029569,173.74,173.73,145.7542]
[1748329270691,0.04029569,173.74,173.73,140.0]
[1748329271791,0.04029569,173.74,173.73,145.7542]
[1748329274287,0.04029569,173.74,173.73,140.0]
[1748329274589,0.04029569,173.74,173.7,0.04358233]
[1748329275684,5.7549,173.71,173.7,0.04358233]
[1748329275990,0.04029569,173.74,173.7,0.04358233]
[1748329277391,0.04029569,173.74,173.71,5.7548]
[1748329277793,0.04029569,173.74,173.7,0.04358233]
[1748329278091,5.7549,173.71,173.7,0.04358233]
[1748329278491,144.6826989,173.74,173.63,5.7574]
[1748329278691,5.18240321,173.71,173.62,139.46]
[1748329278891,3.8897,173.7,173.62,139.46]
[1748329279094,3.8897,173.7,173.62,145.2178]
[1748329279291,3.8897,173.7,173.62,139.46]
[1748329279493,0.03657499,173.68,173.64,0.04122586]
[1748329280997,5.7563,173.67,173.64,0.04122586]
[1748329281394,0.03657499,173.68,173.64,0.04122586]
[1748329283198,0.03657499,173.68,173.67,5.7562]
[1748329286607,0.03657499,173.68,173.67,115.0962]
[1748329286904,0.03657499,173.68,173.64,0.04122586]
[1748329286905,0.03657499,173.68,173.65,5.7566]
[1748329287096,0.03657499,173.68,173.66,109.34]
[1748329288404,0.03657499,173.68,173.65,145.2368]
[1748329288705,0.03657499,173.68,173.65,139.48]
[1748329290306,5.7563,173.67,173.64,0.04122586]
[1748329290605,0.03657499,173.68,173.64,0.04122586]
[1748329290905,0.03657499,173.68,173.66,5.7565]
[1748329291107,0.03657499,173.68,173.64,0.04122586]
[1748329291600,0.03657499,173.68,173.67,5.7562]
[1748329293499,0.03657499,173.68,173.66,139.48]
[1748329293806,5.79247499,173.68,173.66,139.48]
[1748329294209,0.03657499,173.68,173.66,139.48]
[1748329296209,0.03657499,173.68,173.64,0.04122586]
[1748329297909,5.7569,173.65,173.64,0.04122586]
[1748329300108,5.7579,173.62,173.61,139.48]
[1748329300509,3.8992,173.67,173.61,139.48]
[1748329300815,5.757,173.65,173.61,139.48]
[1748329301207,0.03928174,173.65,173.61,139.48]
[1748329301413,5.79618174,173.65,173.61,145.2381]
[1748329302014,0.03928174,173.65,173.62,5.7579]
[1748329302615,5.79618174,173.65,173.61,145.2381]
[1748329304115,0.03928174,173.65,173.61,139.48]
[1748329306017,5.79628174,173.65,173.61,145.2379]
[1748329306618,5.79628174,173.65,173.62,5.7578]
[1748329307315,5.79628174,173.65,173.61,145.2382]
[1748329308220,0.03928174,173.65,173.62,5.7578]
[1748329309523,5.79638174,173.65,173.61,145.2381]
[1748329309817,0.03928174,173.65,173.61,145.2381]
[1748329310018,0.03928174,173.65,173.61,139.48]
[1748329310314,0.03928174,173.65,173.52,499.3613]
[1748329310618,0.03931898,173.6,173.53,248.32]
[1748329311018,5.759,173.59,173.55,5.76]
[1748329311216,0.03931898,173.6,173.53,248.32]
[1748329311719,5.79791898,173.6,173.56,5.7597]
[1748329312120,5.79791898,173.6,173.53,248.32]
[1748329312419,5.7589,173.59,173.55,5.76]
[1748329312816,0.03931898,173.6,173.53,248.32]
[1748329313615,0.03931898,173.6,173.59,5.7589]
[1748329313921,5.7566,173.66,173.59,138.98]
[1748329314121,4.1033,173.67,173.59,138.98]
[1748329314724,5.7575,173.64,173.61,0.03931898]
[1748329314922,0.04083176,173.65,173.61,0.03931898]
[1748329315420,5.7579,173.62,173.61,0.03931898]
[1748329315621,0.04083176,173.65,173.61,0.03931898]
[1748329315822,5.7578,173.63,173.61,0.03931898]
[1748329316517,5.7572,173.64,173.61,0.03931898]
[1748329317923,5.7575,173.63,173.61,0.03931898]
[1748329320122,0.04083176,173.65,173.61,0.03931898]
[1748329321527,0.04083176,173.65,173.63,5.7574]
[1748329322026,0.04083176,173.65,173.64,5.7572]
[1748329322725,0.04083176,173.65,173.61,0.03931898]
[1748329323123,5.7575,173.64,173.61,0.03931898]
[1748329323321,0.04083176,173.65,173.61,0.03931898]
[1748329323825,5.79793176,173.65,173.61,0.03931898]
[1748329324829,5.7573,173.64,173.61,0.03931898]
[1748329325123,0.04083176,173.65,173.61,0.03931898]
[1748329325426,5.7578,173.63,173.61,0.03931898]
[1748329325627,0.04083176,173.65,173.61,0.03931898]
[1748329326421,0.04083176,173.65,173.62,138.98]
[1748329326625,0.04083176,173.65,173.64,5.7572]
[1748329329929,0.04083176,173.65,173.63,5.7574]
[1748329331226,0.04083176,173.65,173.62,138.98]
[1748329332329,0.04083176,173.65,173.64,5.7572]
[1748329333933,0.04083176,173.65,173.64,5.7572]
[1748329335535,3.176e-05,173.65,173.64,5.7572]
[1748329336535,3.176e-05,173.65,173.64,115.1172]
[1748329337235,1.9726,173.76,173.64,115.12]
[1748329337437,145.44680321,173.8,173.65,1.9218]
[1748329337636,5.7531,173.77,173.73,5.7541]
[1748329338135,0.03780676,173.77,173.73,0.04407398]
[1748329339442,5.79080676,173.77,173.73,0.04407398]
[1748329339840,0.03780676,173.77,173.73,0.04407398]
[1748329340039,5.7534,173.76,173.73,0.04407398]
[1748329340842,5.79080676,173.77,173.73,0.04407398]
[1748329343142,5.79080676,173.77,173.73,5.79827398]
[1748329343641,0.03780676,173.77,173.74,5.7538]
[1748329344443,0.03780676,173.77,173.75,5.7534]
[1748329344741,0.03780676,173.77,173.73,0.04407398]
[1748329345041,0.03780676,173.77,173.73,5.79827398]
[1748329345444,0.03780676,173.77,173.73,0.04407398]
[1748329345943,0.03780676,173.77,173.74,5.7536]
[1748329347843,0.03780676,173.77,173.73,5.79827398]
[1748329348341,0.03780676,173.77,173.73,0.04407398]
[1748329349847,5.79080676,173.77,173.73,0.04407398]
[1748329350050,0.03780676,173.77,173.73,5.79807398]
[1748329350451,0.03780676,173.77,173.74,5.7539]
[1748329352245,0.03780676,173.77,173.73,0.04407398]
[1748329352851,5.7535,173.76,173.73,0.04407398]
[1748329353352,5.7536,173.75,173.73,0.04407398]
[1748329354050,5.7533,173.76,173.73,0.04407398]
[1748329354753,5.7536,173.75,173.73,0.04407398]
[1748329355753,0.03780676,173.77,173.73,0.04407398]
[1748329357253,0.03780676,173.77,173.76,5.7532]
[1748329359956,0.03780676,173.77,173.76,144.0132]
[1748329364758,0.03780676,173.77,173.76,138.26]
[1748329366860,0.03780676,173.77,173.76,144.0132]
[1748329367861,0.03780676,173.77,173.76,138.26]
[1748329370062,0.03780676,173.77,173.76,144.0132]
[1748329371264,0.03780676,173.77,173.76,138.26]
[1748329372861,0.03780676,173.77,173.73,137.62407398]
[1748329373568,0.03780676,173.77,173.74,5.7537]
[1748329373769,0.03780676,173.77,173.73,137.62407398]
[1748329375666,0.03780676,173.77,173.73,142.80647719]
[1748329375867,6.76e-06,173.77,173.74,1.9676]
[1748329376068,6.76e-06,173.77,173.76,5.7532]
[1748329378173,3.9764,173.84,173.8,5.7516]
[1748329378368,3.9764,173.84,173.8,137.58]
[1748329378672,3.9764,173.84,173.81,5.7514]
[1748329379078,9.727,173.84,173.8,137.58]
[1748329379267,4.01425384,173.84,173.81,0.04247613]
[1748329379673,4.01425384,173.84,173.81,5.79397613]
[1748329379974,4.01425384,173.84,173.81,0.04247613]
[1748329380575,0.03785384,173.84,173.81,0.04247613]
[1748329381072,0.03785384,173.84,173.83,5.7509]
[1748329381473,5.384e-05,173.84,173.83,5.7509]
[1748329393884,5.384e-05,173.84,173.81,0.04247613]
[1748329394485,5.384e-05,173.84,173.83,5.7509]
[1748329394887,5.384e-05,173.84,173.81,0.04247613]
[1748329396188,5.384e-05,173.84,173.83,5.7509]
[1748329402495,5.384e-05,173.84,173.82,5.7511]
[1748329402895,5.384e-05,173.84,173.81,0.04247613]
[1748329403391,5.384e-05,173.84,173.76,5.18240321]
[1748329403392,5.384e-05,173.84,173.74,496.88]
[1748329403688,5.18245705,173.84,173.76,5.7531]
[1748329403894,1.9907,173.83,173.75,136.82]
[1748329404499,1.9907,173.83,173.77,0.0387886]
[1748329404794,5.7535,173.76,173.72,5.7543]
[1748329404995,5.18240321,173.81,173.71,136.82]
[1748329405402,5.7538,173.75,173.71,142.5747]
[1748329405701,5.79652023,173.75,173.71,142.61174581]
[1748329406203,0.04272023,173.75,173.71,136.85704581]
[1748329406900,0.04272023,173.75,173.74,5.7539]
[1748329413003,0.04272023,173.75,173.73,5.7541]
[1748329413307,0.04272023,173.75,173.71,136.85704581]
[1748329413803,0.04272023,173.75,173.74,5.7539]
[1748329419315,2.0059,173.82,173.73,5.18240321]
[1748329419611,1.8842,173.87,173.73,5.18240321]
[1748329419811,5.75,173.86,173.82,5.751]
[1748329420013,3.8363,173.87,173.79,136.88]
[1748329420209,0.04304384,173.85,173.81,0.03718334]
[1748329421617,0.04304384,173.85,173.84,5.7506]
[1748329426528,0.04304384,173.85,173.84,142.6106]
[1748329428326,0.04304384,173.85,173.83,5.7509]
[1748329428526,0.04304384,173.85,173.82,245.38]
[1748329428725,0.04304384,173.85,173.82,136.14]
[1748329431030,0.04304384,173.85,173.84,5.7506]
[1748329441937,0.04304384,173.85,173.84,109.22]
[1748329442838,0.04304384,173.85,173.84,114.9706]
[1748329446440,4.384e-05,173.85,173.84,114.9706]
[1748329447436,136.1,174.0,173.84,114.40240321]
[1748329447740,3.9832,173.97,173.87,5.18240321]
[1748329448038,3.9832,173.97,173.92,5.7477]
[1748329448338,0.04410294,173.96,173.93,0.04278282]
[1748329448540,5.79100294,173.96,173.93,0.04278282]
[1748329448941,0.04410294,173.96,173.93,0.04278282]
[1748329449141,5.7473,173.94,173.93,0.04278282]
[1748329451246,1.9313,173.95,173.89,109.2]
[1748329451447,1.9313,173.95,173.88,136.1]
[1748329451841,5.7489,173.9,173.88,136.1]
[1748329452143,0.04195229,173.91,173.88,136.1]
[1748329452645,5.79025229,173.91,173.88,141.8491]
[1748329453748,5.7486,173.9,173.88,136.1]
[1748329453948,0.04195229,173.91,173.88,136.1]
[1748329454145,0.04195229,173.91,173.87,0.04390987]
[1748329454345,5.7493,173.88,173.87,0.04390987]
[1748329454548,1.9898,173.9,173.84,136.08]
[1748329454747,1.9898,173.9,173.8,136.08]
[1748329454947,7.17220321,173.9,173.8,136.08]
[1748329455553,0.03924403,173.87,173.83,0.04350028]
[1748329455749,5.7508,173.84,173.83,0.04350028]
[1748329460858,5.7503,173.85,173.83,0.04350028]
[1748329461159,0.03924403,173.87,173.83,0.04350028]
[1748329461761,0.03924403,173.87,173.86,5.7499]
[1748329461961,0.03924403,173.87,173.86,114.9699]
[1748329469771,2.66939761,173.87,173.86,114.9699]
[1748329471473,0.03924403,173.87,173.86,114.9699]
[1748329472177,4.403e-05,173.87,173.86,114.9699]
[1748329473074,4.403e-05,173.87,173.86,114.9499]
[1748329479875,2.0404,173.98,173.86,109.2]
[1748329480078,2.56972725,173.97,173.86,109.2]
[1748329480279,2.56972725,173.96,173.86,109.2]
[1748329480482,2.56972725,173.95,173.92,5.7477]
[1748329480684,5.7466,173.96,173.92,5.7477]
[1748329480884,2.56943373,173.95,173.92,5.78488209]
[1748329481074,2.56916839,173.94,173.92,0.03718209]
[1748329481276,0.04157803,173.96,173.91,135.32]
[1748329481277,2.56916839,173.93,173.91,135.32]
[1748329481480,5.7478,173.93,173.91,135.32]
[1748329481788,0.04157803,173.96,173.91,135.32]
[1748329482086,5.7474,173.94,173.91,141.068]
[1748329482285,2.5695069,173.93,173.91,141.11085632]
[1748329482582,5.7474,173.94,173.91,141.11085632]
[1748329482783,8.31750667,173.93,173.91,141.11085632]
[1748329483088,5.7476,173.93,173.91,141.11085632]
[1748329483481,5.7475,173.94,173.91,141.11085632]
[1748329483683,2.56944084,173.93,173.91,135.36285632]
[1748329483976,0.04157803,173.96,173.91,135.36285632]
[1748329484287,5.7478,173.93,173.91,135.36285632]
[1748329484485,2.56936272,173.92,173.91,135.36285632]
[1748329485291,5.7478,173.93,173.91,141.11115632]
[1748329485591,5.7473,173.94,173.91,141.11115632]
[1748329485890,2.56976129,173.93,173.91,141.11115632]
[1748329486088,0.04157803,173.96,173.91,141.11115632]
[1748329486389,5.7473,173.94,173.91,141.11115632]
[1748329486589,2.56974382,173.93,173.92,5.7479]
[1748329486791,2.56974382,173.93,173.91,135.36285632]
[1748329487092,0.04157803,173.96,173.91,135.36285632]
[1748329487290,5.7475,173.94,173.91,141.11095632]
[1748329487491,2.56996793,173.93,173.91,141.11095632]
[1748329487689,0.04157803,173.96,173.91,135.36285632]
[1748329487993,2.57023607,173.95,173.91,135.36285632]
[1748329488193,2.57023607,173.94,173.92,5.7477]
[1748329488493,2.57023607,173.93,173.92,5.7477]
[1748329489294,2.57023607,173.93,173.91,141.11105632]
[1748329489595,5.7473,173.94,173.91,141.11105632]
[1748329489789,2.57016133,173.93,173.91,141.11105632]
[1748329490093,5.7473,173.94,173.91,141.11105632]
[1748329490289,2.57026987,173.93,173.91,141.11105632]
[1748329490494,5.7473,173.94,173.91,141.11105632]
[1748329490694,2.57051615,173.93,173.91,141.11105632]
[1748329490896,5.7473,173.94,173.91,141.11105632]
[1748329491095,2.57053838,173.93,173.92,5.7479]
[1748329491396,5.747,173.95,173.91,135.36285632]
[1748329491696,5.747,173.95,173.92,5.7479]
[1748329492993,5.7473,173.94,173.91,141.11105632]
[1748329493694,5.7471,173.95,173.92,5.7479]
[1748329495097,5.7471,173.95,173.91,141.11095632]
[1748329496297,5.7471,173.95,173.92,5.7478]
[1748329496594,5.78827803,173.96,173.91,135.36285632]
[1748329497297,5.747,173.95,173.92,5.7478]
[1748329497495,5.747,173.95,173.91,135.36285632]
[1748329497886,5.747,173.95,173.91,141.11085632]
[1748329498092,5.747,173.95,173.91,135.36285632]
[1748329499097,5.747,173.95,173.92,5.7477]
[1748329500596,0.04157803,173.96,173.85,1.21424428]
[1748329500597,2.56828325,173.94,173.85,134.5]
[1748329500796,2.56828325,173.93,173.85,134.5]
[1748329501101,5.7496,173.87,173.85,134.5]
[1748329502000,5.79107946,173.88,173.85,140.2503]
[1748329502298,0.04167946,173.88,173.85,134.5]
[1748329502597,0.04167946,173.88,173.87,5.7496]
[1748329504090,0.04167946,173.88,173.87,140.2696]
[1748329511003,0.04167946,173.88,173.87,134.52]
[1748329511504,0.04167946,173.88,173.87,140.2696]
[1748329514404,7.946e-05,173.88,173.87,140.2696]
[1748329514807,5.7464,173.97,173.94,5.7472]
[1748329515105,2.56922335,173.96,173.94,5.7472]
[1748329515311,5.7464,173.97,173.94,5.7472]
[1748329515812,5.78337695,173.97,173.94,5.78851085]
[1748329516508,5.78337695,173.97,173.94,0.04131085]
[1748329516711,5.7467,173.96,173.94,0.04131085]
[1748329518911,5.7467,173.96,173.94,5.78861085]
[1748329519208,5.7467,173.96,173.94,0.04131085]
[1748329519710,5.747,173.95,173.94,0.04131085]
[1748329524504,8.32276996,173.95,173.94,0.04131085]
[1748329524705,2.57576996,173.95,173.86,133.7]
[1748329524902,2.57576996,173.94,173.86,133.7]
[1748329525100,4.48256996,173.93,173.86,139.4497]
[1748329525307,5.749,173.89,173.86,139.4497]
[1748329525502,135.6068,173.93,173.82,5.7511]
[1748329525701,135.6068,173.93,173.86,0.03313838]
[1748329525702,0.03718361,173.89,173.86,0.03313838]
[1748329526010,5.7496,173.87,173.86,0.03313838]
[1748329529712,7.8043,173.88,173.86,0.03313838]
[1748329529919,0.03718361,173.89,173.86,0.03313838]
[1748329530213,0.03718361,173.89,173.88,5.7493]
[1748329532018,0.03718361,173.89,173.86,0.03313838]
[1748329533416,5.78628361,173.89,173.86,0.03313838]
[1748329534111,0.03718361,173.89,173.86,0.03313838]
[1748329534510,5.7496,173.87,173.86,0.03313838]
[1748329536427,0.03718361,173.89,173.86,0.03313838]
[1748329536814,0.03718361,173.89,173.86,5.78293838]
[1748329537221,0.03718361,173.89,173.86,0.03313838]
[1748329537523,0.03718361,173.89,173.87,5.7493]
[1748329537725,0.03718361,173.89,173.86,0.03313838]
[1748329540326,5.7496,173.87,173.86,0.03313838]
[1748329543729,5.7521,173.8,173.77,5.7528]
[1748329543926,5.7521,173.8,173.77,114.9728]
[1748329544328,4.0694,173.86,173.77,114.9728]
[1748329544633,2.56834472,173.85,173.77,114.9728]
[1748329544828,5.7515,173.82,173.77,114.9728]
[1748329545033,5.7515,173.82,173.78,5.7523]
[1748329545227,5.7515,173.82,173.77,109.22]
[1748329545428,0.04086159,173.83,173.77,109.22]
[1748329545632,5.79186159,173.83,173.79,5.752]
[1748329545936,0.04086159,173.83,173.77,109.22]
[1748329546126,0.04086159,173.83,173.82,5.7513]
[1748329546326,0.04086159,173.83,173.82,139.5113]
[1748329546525,133.74,173.91,173.82,133.76]
[1748329546727,2.56776321,173.9,173.85,5.7499]
[1748329546926,133.74,173.91,173.82,133.76]
[1748329547130,2.56766844,173.9,173.82,133.76]
[1748329547332,2.56749893,173.89,173.82,133.76]
[1748329547531,0.04431812,173.87,173.84,0.03921625]
[1748329548535,5.7502,173.86,173.84,0.03921625]
[1748329548836,0.04431812,173.87,173.84,0.03921625]
[1748329549229,5.7502,173.86,173.84,0.03921625]
[1748329549629,5.7503,173.85,173.84,0.03921625]
[1748329556336,5.7503,173.85,173.84,1.625e-05]
[1748329556941,5.7522,173.79,173.78,133.0]
[1748329557935,5.752,173.8,173.78,133.0]
[1748329558340,0.03684935,173.81,173.76,133.02]
[1748329558839,0.03684935,173.81,173.8,5.7519]
[1748329562539,5.7495,173.88,173.77,3.9662]
[1748329562741,5.7495,173.88,173.77,9.14860321]
[1748329563041,5.7495,173.88,173.85,5.7502]
[1748329563441,5.79251768,173.88,173.85,5.7886947]